lending/lending_fUSD_20251016
["ID","MTS","AMOUNT","RATE_DAILY","PERIOD"]
[391525768,1760631040421,-931.64434,0.0001524,2]
[391525769,1760631040430,-262.55,0.00015265,2]
[391525770,1760631040440,-151.0,0.00015291,2]
[391525771,1760631040451,-9999.99,0.0001531,2]
[391525772,1760631040460,-45731.53,0.0001531,2]
[391525773,1760631040471,-9999.99,0.0001531,2]
[391525774,1760631040480,-931.64433,0.0001548,2]
[391525775,1760631040490,-262.55,0.00015539,2]
[391525776,1760631040499,-5665.36359645,0.00015623,2]
[391525778,1760631040509,-691.62,0.00015701,2]
[391525779,1760631040518,-931.64433,0.0001574,2]
[391525780,1760631040528,-262.55,0.00015813,2]
[391525781,1760631040537,-273.67364533,0.00015898,2]
[391525782,1760631040550,-931.64434,0.0001599,2]
[391525783,1760631040559,-5773.71716303,0.00016002,2]
[391525784,1760631040569,-262.57395108,0.00016087,2]
[391525785,1760631040578,-691.62,0.00016243,2]
[391525786,1760631040588,-497.37,0.00016438,30]
[391525787,1760631040598,-162.66,0.0001644,2]
[391525788,1760631040607,-250.0,0.00016448,7]
[391525789,1760631040617,-180.6712898,0.00016645,2]
[391525790,1760631040626,-486.18,0.00016657,2]
[391525791,1760631040635,-691.62,0.00016784,2]
[391525792,1760631040646,-200.0,0.00016851,2]
[391525793,1760631040656,-1000.0,0.00016882,2]
[391525794,1760631040665,-414.66348479,0.00016896,2]
[391525795,1760631040677,-167.16,0.00017088,2]
[391525796,1760631040687,-5773.71716303,0.00017105,2]
[391525797,1760631040698,-691.62,0.00017325,2]
[391525798,1760631040711,-203.34762041,0.0001773,2]
[391525799,1760631040722,-475.57272817,0.00017762,2]
[391525800,1760631040733,-691.62,0.00017867,2]
[391525801,1760631040748,-556.84740336,0.00017893,2]
[391525802,1760631040763,-1955.83031149,0.00018,2]
[391525803,1760631040774,-166.66,0.00018086,2]
[391525804,1760631040784,-1955.83031149,0.000182,2]
[391525805,1760631040798,-5773.71716303,0.00018207,2]
[391525806,1760631040808,-158.14,0.00018364,2]
[391525807,1760631040818,-682.7,0.00018382,2]
[391525808,1760631041306,-180.6712898,0.00018389,2]
[391525809,1760631041317,-183.7,0.00018393,2]
[391525810,1760631041327,-1955.83031149,0.000184,2]
[391525811,1760631041337,-214.23,0.00018408,2]
[391525812,1760631041347,-691.62,0.00018408,2]
[391525813,1760631041358,-1600.0,0.00018454,2]
[391525814,1760631041371,-166.66,0.00018467,2]
[391525815,1760631041382,-1955.83031149,0.000186,2]
[391525816,1760631041391,-1955.83031149,0.000187,2]
[391525817,1760631041401,-1000.0,0.00018757,2]
[391525818,1760631041412,-166.66,0.00018847,2]
[391525819,1760631041423,-699.92588211,0.00018891,2]
[391525820,1760631041432,-1955.83031149,0.000189,2]
[391525821,1760631041442,-225.80403804,0.000189,2]
[391525822,1760631041451,-469.1330229,0.000189,2]
[391525823,1760631041462,-151.0,0.00018917,2]
[391525824,1760631041472,-389.29676655,0.00018919,2]
[391525825,1760631041482,-424.69173079,0.00018919,2]
[391525826,1760631041492,-1000.0,0.0001892,2]
[391525827,1760631041501,-1000.0,0.0001892,2]
[391525828,1760631041511,-1000.0,0.0001892,2]
[391525829,1760631041520,-1000.0,0.0001892,2]
[391525830,1760631041530,-1000.0,0.0001892,2]
[391525831,1760631041539,-250.0,0.0001892,2]
[391525832,1760631041554,-9552.16786547,0.0001892,2]
[391525833,1760631041563,-1000.0,0.0001892,2]
[391525834,1760631041576,-250.0,0.0001892,2]
[391525835,1760631041585,-1000.0,0.0001892,2]
[391525837,1760631041595,-250.0,0.0001892,2]
[391525838,1760631041604,-1000.0,0.0001892,2]
[391525839,1760631041614,-250.0,0.0001892,2]
[391525840,1760631041623,-1000.0,0.0001892,2]
[391525841,1760631041634,-250.0,0.0001892,2]
[391525842,1760631041644,-1000.0,0.0001892,2]
[391525843,1760631041654,-250.0,0.0001892,2]
[391525844,1760631041664,-1000.0,0.0001892,2]
[391525845,1760631041674,-250.0,0.0001892,2]
[391525846,1760631041684,-250.0,0.0001892,2]
[391525847,1760631041694,-250.0,0.0001892,2]
[391525848,1760631041704,-250.0,0.0001892,2]
[391525849,1760631041713,-250.0,0.0001892,2]
[391525850,1760631041723,-151.0,0.0001892,2]
[391525851,1760631041733,-250.0,0.0001892,2]
[391525852,1760631041744,-250.0,0.0001892,2]
[391525853,1760631041754,-151.0,0.0001892,2]
[391525854,1760631041764,-250.0,0.0001892,2]
[391525855,1760631041778,-250.0,0.0001892,2]
[391525856,1760631041788,-151.0,0.0001892,2]
[391525857,1760631041804,-250.0,0.0001892,2]
[391525858,1760631041814,-151.0,0.0001892,2]
[391525859,1760631041824,-250.0,0.0001892,2]
[391525860,1760631041834,-151.0,0.0001892,2]
[391525861,1760631041844,-250.0,0.0001892,2]
[391525862,1760631041854,-151.0,0.0001892,2]
[391525863,1760631041864,-250.0,0.0001892,2]
[391525864,1760631041873,-151.0,0.0001892,2]
[391525865,1760631041883,-151.0,0.0001892,2]
[391525866,1760631041893,-250.0,0.0001892,2]
[391525867,1760631041903,-151.0,0.0001892,2]
[391525868,1760631041913,-250.0,0.0001892,2]
[391525869,1760631041922,-151.0,0.0001892,2]
[391525870,1760631041932,-250.0,0.0001892,2]
[391525871,1760631041942,-151.0,0.0001892,2]
[391525872,1760631041951,-250.0,0.0001892,2]
[391525873,1760631041960,-151.0,0.0001892,2]
[391525874,1760631041970,-250.0,0.0001892,2]
[391525875,1760631041982,-1000.0,0.0001892,2]
[391525876,1760631041994,-250.0,0.0001892,2]
[391525877,1760631042004,-1000.0,0.0001892,2]
[391525878,1760631042014,-1000.0,0.0001892,2]
[391525879,1760631042024,-250.0,0.0001892,2]
[391525880,1760631042034,-1000.0,0.0001892,2]
[391525881,1760631042045,-250.0,0.0001892,2]
[391525882,1760631042055,-538.02392244,0.0001892,2]
[391525883,1760631042066,-250.0,0.0001892,2]
[391525884,1760631042075,-250.0,0.0001892,2]
[391525885,1760631042086,-250.0,0.0001892,2]
[391525886,1760631042095,-250.0,0.0001892,2]
[391525887,1760631042105,-250.0,0.0001892,2]
[391525888,1760631042115,-277.35679052,0.0001892,2]
[391525889,1760631042125,-250.0,0.0001892,2]
[391525890,1760631042135,-250.0,0.0001892,2]
[391525891,1760631042145,-250.0,0.0001892,2]
[391525892,1760631042155,-250.0,0.0001892,2]
[391525893,1760631042164,-250.0,0.0001892,2]
[391525894,1760631042175,-250.0,0.0001892,2]
[391525895,1760631042189,-250.0,0.0001892,2]
[391525896,1760631042198,-268.0,0.0001892,2]
[391525897,1760631042209,-250.0,0.0001892,2]
[391525898,1760631042219,-250.0,0.0001892,2]
[391525899,1760631042229,-250.0,0.0001892,2]
[391525900,1760631042239,-250.0,0.0001892,2]
[391525901,1760631042248,-250.0,0.0001892,2]
[391525902,1760631042271,-250.0,0.0001892,2]
[391525903,1760631042283,-250.0,0.0001892,2]
[391525904,1760631042296,-1000.0,0.0001892,2]
[391525905,1760631042306,-250.0,0.0001892,2]
[391525906,1760631042317,-1000.0,0.0001892,2]
[391525907,1760631042327,-322.6107,0.0001892,2]
[391525908,1760631042338,-250.0,0.0001892,2]
[391525909,1760631042352,-1000.0,0.0001892,2]
[391525910,1760631042363,-1000.0,0.0001892,2]
[391525911,1760631042373,-1000.0,0.0001892,2]
[391525912,1760631042383,-1000.0,0.0001892,2]
[391525913,1760631042393,-1000.0,0.0001892,2]
[391525914,1760631042404,-151.0,0.0001892,2]
[391525915,1760631042415,-1000.0,0.0001892,2]
[391525916,1760631042425,-1000.0,0.0001892,2]
[391525917,1760631042435,-1000.0,0.0001892,2]
[391525918,1760631042446,-1000.0,0.0001892,2]
[391525919,1760631042456,-721.12765535,0.0001892,2]
[391525920,1760631042467,-691.62,0.0001895,2]
[391525921,1760631042477,-495.6533781,0.00018973,2]
[391525922,1760631042487,-500.42156052,0.00018973,2]
[391525923,1760631042497,-500.0,0.00018973,2]
[391525924,1760631042507,-500.0,0.00018973,2]
[391525925,1760631042517,-500.0,0.00018973,2]
[391525926,1760631042527,-500.0,0.00018973,2]
[391525927,1760631042537,-165.61886819,0.00018973,2]
[391525928,1760631042549,-500.0,0.00018973,2]
[391525929,1760631042563,-500.45536036,0.00018973,2]
[391525930,1760631042575,-500.36627413,0.00018973,2]
[391525931,1760631042586,-500.0,0.00018973,2]
[391525932,1760631042596,-278.31371444,0.00018973,2]
[391525933,1760631042606,-500.33191411,0.00018973,2]
[391525934,1760631042616,-509.5797944,0.00018973,2]
[391525935,1760631042626,-500.19980439,0.00018973,2]
[391525936,1760631042636,-500.15284643,0.00018973,2]
[391525937,1760631042646,-500.42702746,0.00018973,2]
[391525938,1760631042656,-500.32606242,0.00018973,2]
[391525939,1760631042666,-500.0,0.00018973,2]
[391525940,1760631042676,-500.0,0.00018973,2]
[391525941,1760631042687,-4148.44074834,0.00018975,2]
[391525943,1760631042697,-151.0,0.00018997,2]
[391525945,1760631042707,-3151.0,0.00019,2]
[391525947,1760631042716,-199.07764939,0.00019,2]
[391525949,1760631042726,-1302.84417245,0.00019,2]
[391525952,1760631042736,-390819.56926684,0.00019,2]
[391525954,1760631042746,-151.0,0.00019,2]
[391525956,1760631042759,-180.86577,0.00019,2]
[391525958,1760631042769,-180.86577,0.00019,2]
[391525959,1760631042780,-180.86577,0.00019,2]
[391525961,1760631042790,-180.86577,0.00019,2]
[391525963,1760631042804,-151.0,0.00019,2]
[391525965,1760631042814,-236.600756,0.00019,2]
[391525967,1760631042824,-151.0,0.00019,2]
[391525969,1760631042835,-151.0,0.00019,2]
[391525970,1760631042845,-151.0,0.00019,2]
[391525972,1760631042855,-151.0,0.00019,2]
[391525974,1760631042864,-151.0,0.00019,2]
[391525976,1760631042874,-198.519304,0.00019,2]
[391525978,1760631042884,-151.0,0.00019,2]
[391525980,1760631042894,-151.0,0.00019,2]
[391525982,1760631042904,-152.038837,0.00019,2]
[391525984,1760631042914,-154.75471,0.00019,2]
[391525986,1760631042924,-154.198005,0.00019,2]
[391525988,1760631042934,-151.0,0.00019,2]
[391525990,1760631042943,-151.0,0.00019,2]
[391525992,1760631042952,-151.0,0.00019,2]
[391525994,1760631042965,-151.0,0.00019,2]
[391525996,1760631042975,-151.0,0.00019,2]
[391525999,1760631042985,-151.0,0.00019,2]
[391526001,1760631042995,-151.0,0.00019,2]
[391526003,1760631043005,-151.0,0.00019,2]
[391526004,1760631043014,-151.0,0.00019,2]
[391526005,1760631043024,-153.364176,0.00019,2]
[391526006,1760631043034,-151.0,0.00019,2]
[391526007,1760631043044,-151.0,0.00019,2]
[391526008,1760631043057,-281.242537,0.00019,2]
[391526009,1760631043068,-281.242537,0.00019,2]
[391526010,1760631043078,-151.0,0.00019,2]
[391526011,1760631043088,-281.242537,0.00019,2]
[391526012,1760631043099,-151.0,0.00019,2]
[391526013,1760631043109,-281.242537,0.00019,2]
[391526014,1760631043120,-151.0,0.00019,2]
[391526015,1760631043130,-154.687895,0.00019,2]
[391526016,1760631043141,-151.0,0.00019,2]
[391526017,1760631043151,-151.0,0.00019,2]
[391526018,1760631043162,-252.247912,0.00019,2]
[391526019,1760631043175,-252.247912,0.00019,2]
[391526020,1760631043188,-252.247912,0.00019,2]
[391526021,1760631043198,-252.247912,0.00019,2]
[391526022,1760631043208,-151.0,0.00019,2]
[391526023,1760631043219,-296.38092,0.00019,2]
[391526024,1760631043229,-296.38092,0.00019,2]
[391526025,1760631043239,-296.38092,0.00019,2]
[391526026,1760631043249,-296.38092,0.00019,2]
[391526027,1760631043261,-151.0,0.00019,2]
[391526028,1760631043271,-151.0,0.00019,2]
[391526029,1760631043281,-151.0,0.00019,2]
[391526030,1760631043291,-151.0,0.00019,2]
[391526031,1760631043306,-151.0,0.00019,2]
[391526032,1760631043316,-151.0,0.00019,2]
[391526033,1760631043327,-168.7904,0.00019,2]
[391526034,1760631043337,-151.0,0.00019,2]
[391526035,1760631043348,-1075.140755,0.00019,2]
[391526036,1760631043358,-151.0,0.00019,2]
[391526037,1760631043372,-1075.140755,0.00019,2]
[391526038,1760631043382,-151.0,0.00019,2]
[391526039,1760631043393,-1075.140755,0.00019,2]
[391526040,1760631043403,-1075.140755,0.00019,2]
[391526041,1760631043413,-151.0,0.00019,2]
[391526042,1760631043422,-151.0,0.00019,2]
[391526043,1760631043432,-151.0,0.00019,2]
[391526044,1760631043442,-151.0,0.00019,2]
[391526046,1760631043451,-300.84455,0.00019,2]
[391526048,1760631043462,-151.0,0.00019,2]
[391526050,1760631043472,-151.0,0.00019,2]
[391526052,1760631043481,-151.0,0.00019,2]
[391526054,1760631043491,-151.0,0.00019,2]
[391526056,1760631043500,-151.0,0.00019,2]
[391526058,1760631043510,-151.0,0.00019,2]
[391526060,1760631043519,-151.0,0.00019,2]
[391526062,1760631043527,-203.390075,0.00019,2]
[391526064,1760631043536,-151.0,0.00019,2]
[391526066,1760631043548,-252.676379,0.00019,2]
[391526068,1760631043557,-252.676379,0.00019,2]
[391526070,1760631043567,-151.0,0.00019,2]
[391526073,1760631043577,-252.676379,0.00019,2]
[391526075,1760631043587,-252.676379,0.00019,2]
[391526078,1760631043597,-151.0,0.00019,2]
[391526080,1760631043607,-528.996136,0.00019,2]
[391526082,1760631043616,-151.0,0.00019,2]
[391526084,1760631043626,-528.996136,0.00019,2]
[391526086,1760631043636,-151.0,0.00019,2]
[391526088,1760631043646,-156.617684,0.00019,2]
[391526090,1760631043657,-528.996136,0.00019,2]
[391526092,1760631043667,-156.617684,0.00019,2]
[391526094,1760631043677,-528.996136,0.00019,2]
[391526096,1760631043687,-156.617684,0.00019,2]
[391526098,1760631043697,-151.0,0.00019,2]
[391526100,1760631043706,-156.617684,0.00019,2]
[391526101,1760631043716,-151.0,0.00019,2]
[391526102,1760631043725,-151.0,0.00019,2]
[391526103,1760631043735,-151.0,0.00019,2]
[391526104,1760631043747,-151.0,0.00019,2]
[391526105,1760631043758,-151.0,0.00019,2]
[391526106,1760631043767,-151.400035,0.00019,2]
[391526107,1760631043776,-231.218828,0.00019,2]
[391526108,1760631043786,-231.218828,0.00019,2]
[391526109,1760631043798,-151.400035,0.00019,2]
[391526110,1760631043808,-231.218828,0.00019,2]
[391526111,1760631043818,-151.400035,0.00019,2]
[391526112,1760631043827,-151.0,0.00019,2]
[391526113,1760631043838,-151.0,0.00019,2]
[391526114,1760631043848,-151.400035,0.00019,2]
[391526115,1760631043857,-151.0,0.00019,2]
[391526116,1760631043868,-151.0,0.00019,2]
[391526117,1760631043878,-231.218828,0.00019,2]
[391526118,1760631043887,-151.0,0.00019,2]
[391526119,1760631043897,-151.0,0.00019,2]
[391526120,1760631043907,-151.0,0.00019,2]
[391526121,1760631043916,-451.582911,0.00019,2]
[391526122,1760631043927,-451.582911,0.00019,2]
[391526123,1760631043952,-451.582911,0.00019,2]
[391526124,1760631043973,-1955.83031149,0.000191,2]
[391526125,1760631043991,-1140.45,0.00019178,2]
[391526126,1760631044005,-1140.45,0.00019178,2]
[391526127,1760631044021,-1092.93,0.00019178,2]
[391526128,1760631044037,-1140.45,0.00019178,2]
[391526129,1760631044054,-1092.93,0.00019178,2]
[391526130,1760631044070,-1140.45,0.00019178,2]
[391526131,1760631044083,-1092.93,0.00019178,2]
[391526132,1760631044099,-1140.45,0.00019178,2]
[391526133,1760631044115,-1140.45,0.00019178,2]
[391526134,1760631044131,-1140.45,0.00019178,2]
[391526135,1760631044147,-500.0,0.00019178,2]
[391526136,1760631044162,-500.0,0.00019178,2]
[391526137,1760631044178,-500.0,0.00019178,2]
[391526138,1760631044195,-500.0,0.00019178,2]
[391526139,1760631044210,-500.0,0.00019178,2]
[391526140,1760631044224,-500.0,0.00019178,2]
[391526141,1760631044240,-500.0,0.00019178,2]
[391526142,1760631044263,-500.0,0.00019178,2]
[391526143,1760631044281,-500.0,0.00019178,2]
[391526144,1760631044297,-500.0,0.00019178,2]
[391526145,1760631044309,-500.0,0.00019178,2]
[391526146,1760631044324,-500.0,0.00019178,2]
[391526147,1760631044339,-500.0,0.00019178,2]
[391526148,1760631044351,-505.37444322,0.00019178,2]
[391526149,1760631044363,-735.18,0.00019178,2]
[391526150,1760631044382,-735.18,0.00019178,2]
[391526151,1760631044397,-500.0,0.00019178,2]
[391526152,1760631044408,-426.76,0.00019178,2]
[391526153,1760631044421,-735.18,0.00019178,2]
[391526154,1760631044434,-735.18,0.00019178,2]
[391526155,1760631044447,-500.0,0.00019178,2]
[391526156,1760631044470,-500.0,0.00019178,2]
[391526157,1760631044491,-500.0,0.00019178,2]
[391526158,1760631044509,-500.0,0.00019178,2]
[391526159,1760631044528,-500.0,0.00019178,2]
[391526160,1760631044573,-12.83881982,0.00019178,2]
[391526170,1760631045904,-2636.31118018,0.00019178,2]
[391526174,1760631045916,-151.0,0.00019178,2]
[391526177,1760631045928,-166.66,0.00019228,2]
[391526179,1760631045940,-1955.83031149,0.000193,2]
[391526181,1760631045952,-4875.37390834,0.0001931,2]
[391526198,1760631046563,-898.34325469,0.0001931,2]
[391526203,1760631046600,-150.0,0.00019318,2]
[391526206,1760631046624,-208.74883415,0.0001941,4]
[391526210,1760631046646,-151.52916495,0.00019468,2]
[391526212,1760631046656,-150.98,0.0001949,2]
[391526214,1760631046666,-691.62,0.00019491,2]
[391526216,1760631046675,-1955.83031149,0.000195,2]
[391526218,1760631046685,-1000.0,0.00019521,2]
[391526220,1760631046694,-1000.0,0.00019521,2]
[391526222,1760631046704,-166.66,0.00019609,2]
[391526224,1760631046714,-304.81766323,0.00019665,2]
[391526226,1760631046724,-158.14,0.00019675,2]
[391526228,1760631046734,-515.0,0.00019699,2]
[391526230,1760631046744,-1955.83031149,0.000197,2]
[391526232,1760631046754,-2000.0,0.000197,2]
[391526234,1760631046763,-1000.0,0.000197,2]
[391526236,1760631046773,-150.00000001,0.00019701,4]
[391526238,1760631046782,-4030.0,0.00019876,2]
[391526240,1760631046792,-6436.0,0.00019876,2]
[391526242,1760631046803,-901.0,0.00019876,2]
[391526244,1760631046813,-1182.0,0.00019876,2]
[391526246,1760631046823,-843.72130352,0.00019889,2]
[391526249,1760631046832,-4860.01320486,0.000199,3]
[391526251,1760631046843,-167.16,0.00019908,2]
[391526253,1760631046852,-166.66,0.0001999,2]
[391526255,1760631046861,-2000.0,0.00019997,2]
[391526256,1760631046871,-2000.0,0.00019997,2]
[391526258,1760631046880,-2000.0,0.00019997,2]
[391526260,1760631046890,-1896.723,0.00019997,2]
[391526262,1760631046899,-264.915,0.00019997,2]
[391526264,1760631046909,-500.0,0.00019999,2]
[391526266,1760631046918,-691.62,0.00020033,2]
[391526268,1760631046928,-1000.97711855,0.00020068,2]
[391526271,1760631046938,-500.9507048,0.00020068,2]
[391526273,1760631046947,-180.6712898,0.00020134,2]
[391526275,1760631046956,-509.67,0.00020187,2]
[391526277,1760631046966,-287.61899177,0.00020289,2]
[391526279,1760631046975,-334.5472959,0.00020289,2]
[391526281,1760631046984,-158.9,0.00020312,2]
[391526282,1760631046994,-5106.0,0.000204,2]
[391526283,1760631047003,-5773.71716303,0.00020412,2]
[391526284,1760631047012,-500.0,0.00020534,2]
[391526285,1760631047022,-500.0,0.00020534,2]
[391526286,1760631047036,-500.0,0.00020534,2]
[391526287,1760631047046,-151.0,0.00020565,7]
[391526288,1760631047058,-151.0,0.00020565,7]
[391526289,1760631047067,-151.0,0.00020565,7]
[391526290,1760631047077,-151.0,0.00020565,7]
[391526291,1760631047086,-682.64160043,0.00020565,2]
[391526292,1760631047096,-150.98,0.00020566,2]
[391526293,1760631047105,-159.037364,0.00020566,7]
[391526294,1760631047115,-301.99999961,0.00020566,7]
[391526295,1760631047125,-151.0,0.00020566,7]
[391526296,1760631047134,-162.432794,0.00020566,7]
[391526297,1760631047144,-151.0,0.00020566,7]
[391526298,1760631047153,-151.0,0.00020566,7]
[391526299,1760631047162,-151.0,0.00020566,7]
[391526300,1760631047172,-151.0,0.00020566,7]
[391526301,1760631047183,-151.0,0.00020566,7]
[391526302,1760631047193,-263.416793,0.00020566,7]
[391526303,1760631047202,-151.0,0.00020566,7]
[391526304,1760631047212,-151.0,0.00020566,7]
[391526305,1760631047222,-691.62,0.00020574,2]
[391526306,1760631047231,-735.18,0.00020575,2]
[391526307,1760631047241,-66170.76173825,0.00020576,2]
[391526308,1760631047253,-482.803007,0.00020576,2]
[391526309,1760631047879,-1.6e-07,0.00020576,2]
[391526310,1760631047892,-37811.99940382,0.00020576,2]
[391526311,1760631048003,-451.582911,0.00019,2]
[391526312,1760631048012,-2546.0,0.00019876,2]
[391526313,1760631048022,-9025.7103125,0.00020576,2]
[391526314,1760631048033,-30306.64153013,0.00020576,2]
[391526315,1760631048045,-5319.59767862,0.00020576,2]
[391526316,1760631048058,-152344.55722208,0.00020576,2]
[391526317,1760631048068,-3407.0,0.00020576,2]
[391526318,1760631048078,-2049.0,0.00020576,2]
[391526319,1760631048087,-1267.0,0.00020576,2]
[391526320,1760631048096,-749.0,0.00020576,2]
[391526321,1760631048105,-604.0,0.00020576,2]
[391526322,1760631048115,-1309.0,0.00020576,2]
[391526323,1760631048125,-1546.0,0.00020576,2]
[391526324,1760631048134,-571.0,0.00020576,2]
[391526325,1760631048143,-816.0,0.00020576,2]
[391526326,1760631048153,-237.265146,0.00020576,7]
[391526327,1760631048163,-180.86577,0.00020576,7]
[391526328,1760631048172,-180.86577,0.00020576,7]
[391526329,1760631048184,-180.86577,0.00020576,7]
[391526330,1760631048194,-180.86577,0.00020576,7]
[391526331,1760631048203,-151.0,0.00020576,7]
[391526332,1760631048212,-151.0,0.00020576,7]
[391526333,1760631048223,-151.0,0.00020576,7]
[391526334,1760631048232,-281.242537,0.00020576,7]
[391526335,1760631048241,-281.242537,0.00020576,7]
[391526336,1760631048251,-281.242537,0.00020576,7]
[391526337,1760631048262,-281.242537,0.00020576,7]
[391526338,1760631048271,-151.0,0.00020576,7]
[391526339,1760631048281,-151.0,0.00020576,7]
[391526340,1760631048290,-151.0,0.00020576,7]
[391526341,1760631048300,-252.247912,0.00020576,7]
[391526342,1760631048311,-252.247912,0.00020576,7]
[391526343,1760631048320,-252.247912,0.00020576,7]
[391526344,1760631048329,-252.247912,0.00020576,7]
[391526345,1760631048338,-238.262804,0.00020576,7]
[391526346,1760631048348,-296.38092,0.00020576,7]
[391526347,1760631048357,-296.38092,0.00020576,7]
[391526348,1760631048366,-296.38092,0.00020576,7]
[391526349,1760631048375,-296.38092,0.00020576,7]
[391526350,1760631048385,-167.693608,0.00020576,7]
[391526351,1760631048394,-151.0,0.00020576,7]
[391526352,1760631048404,-152.408935,0.00020576,7]
[391526353,1760631048413,-240.186128,0.00020576,7]
[391526354,1760631048423,-151.0,0.00020576,7]
[391526355,1760631048432,-151.0,0.00020576,7]
[391526356,1760631048441,-151.0,0.00020576,7]
[391526357,1760631048451,-1075.140755,0.00020576,7]
[391526358,1760631048460,-151.0,0.00020576,7]
[391526359,1760631048470,-1075.140755,0.00020576,7]
[391526360,1760631048479,-273.466975,0.00020576,7]
[391526361,1760631048489,-1075.140755,0.00020576,7]
[391526362,1760631048498,-1075.140755,0.00020576,7]
[391526363,1760631048508,-151.0,0.00020576,7]
[391526364,1760631048517,-151.0,0.00020576,7]
[391526365,1760631048526,-151.0,0.00020576,7]
[391526366,1760631048535,-151.0,0.00020576,7]
[391526367,1760631048544,-151.0,0.00020576,7]
[391526368,1760631048557,-151.0,0.00020576,7]
[391526369,1760631048566,-189.5435,0.00020576,7]
[391526370,1760631048575,-151.0,0.00020576,7]
[391526371,1760631048584,-151.0,0.00020576,7]
[391526372,1760631048593,-292.465776,0.00020576,7]
[391526373,1760631048602,-151.0,0.00020576,7]
[391526374,1760631048611,-252.676379,0.00020576,7]
[391526375,1760631048620,-252.676379,0.00020576,7]
[391526376,1760631048630,-151.0,0.00020576,7]
[391526377,1760631048639,-252.676379,0.00020576,7]
[391526378,1760631048648,-252.676379,0.00020576,7]
[391526379,1760631048658,-151.0,0.00020576,7]
[391526380,1760631048667,-528.996136,0.00020576,7]
[391526381,1760631048677,-151.0,0.00020576,7]
[391526382,1760631048686,-528.996136,0.00020576,7]
[391526383,1760631048696,-151.0,0.00020576,7]
[391526384,1760631048706,-156.617684,0.00020576,7]
[391526385,1760631048715,-528.996136,0.00020576,7]
[391526386,1760631048724,-156.617684,0.00020576,7]
[391526387,1760631048733,-528.996136,0.00020576,7]
[391526388,1760631048743,-156.617684,0.00020576,7]
[391526389,1760631048752,-170.659696,0.00020576,7]
[391526390,1760631048761,-156.617684,0.00020576,7]
[391526391,1760631048771,-151.0,0.00020576,7]
[391526392,1760631048780,-289.052904,0.00020576,7]
[391526393,1760631048789,-151.0,0.00020576,7]
[391526394,1760631048798,-151.0,0.00020576,7]
[391526395,1760631048810,-231.218828,0.00020576,7]
[391526396,1760631048821,-151.400035,0.00020576,7]
[391526397,1760631048831,-231.218828,0.00020576,7]
[391526398,1760631048840,-151.400035,0.00020576,7]
[391526399,1760631048850,-151.0,0.00020576,7]
[391526400,1760631048860,-151.400035,0.00020576,7]
[391526401,1760631048870,-151.0,0.00020576,7]
[391526402,1760631048880,-231.218828,0.00020576,7]
[391526403,1760631048891,-151.0,0.00020576,7]
[391526404,1760631048900,-151.400035,0.00020576,7]
[391526405,1760631048910,-151.0,0.00020576,7]
[391526406,1760631048919,-201.481196,0.00020576,7]